[Event "Icelandic Open 2019"]
[Site "Akureyri"]
[Date "2019.05.26"]
[Round "2.2"]
[White "Hillarp Persson, Tiger"]
[Black "Thorhallsson, Simon"]
[Result "1-0"]
[ECO "A36"]
[WhiteElo "2563"]
[BlackElo "2184"]
[Annotator "ChessBase"]
[PlyCount "65"]
[EventDate "2019.05.25"]
[EventType "swiss"]
[EventCountry "ISL"]
[SourceTitle "playchess.com"]
[Source "ChessBase"]
[SourceQuality "1"]
[TimeControl "40/5400+30:1800+30"]

1. c4 {[%emt 0:00:00]} c5 {[%emt 0:00:00]} 2. Nf3 {[%emt 0:02:33]} Nc6 {[%emt 0:02:18]} 3. b3 {[%emt 0:01:58]} d6 {[%emt 0:05:25]} 4. Bb2 {[%emt 0:01:02]} e5 {[%emt 0:00:25]} 5. Nc3 {[%emt 0:01:06]} g6 {[%emt 0:00:30]} 6. g3 {[%emt 0:00:18]} Bg7 {[%emt 0:00:08]} 7. d3 {[%emt 0:00:39]} Nge7 {[%emt 0:00:21]} 8. Bg2 {[%emt 0:00:07]} O-O {[%emt 0:01:01]} 9. O-O {[%emt 0:00:05]} h6 {[%emt 0:01:59]} 10. Nd2 {[%emt 0:01:27]} Be6 {[%emt 0:01:47]} 11. Nd5 {[%emt 0:00:32]} Bxd5 {[%emt 0:03:48]} 12. cxd5 {[%emt 0:00:11]} Nb4 {[%emt 0:00:10]} 13. e4 {[%emt 0:04:05]} Nxd3 {[%emt 0:00:23]} 14. Bc3 {[%emt 0:00:07]} Nb4 {[%emt 0:01:55]} 15. a3 {[%emt 0:00:13]} Na6 {[%emt 0:00:21]} 16. b4 {[%emt 0:00:40]} Qd7 {[%emt 0:20:18]} 17. Qb3 {[%emt 0:03:22]} Rfc8 {[%emt 0:02:45]} 18. Rfc1 {[%emt 0:03:04]} b5 {[%emt 0:04:16]} 19. Qb2 {[%emt 0:04:11]} h5 {[%emt 0:05:45]} 20. f4 {[%emt 0:06:58]} Qb7 {[%emt 0:11:42]} 21. Nf3 {[%emt 0:16:20]} cxb4 {[%emt 0:01:44]} 22. axb4 {[%emt 0:01:39]} Qb6+ {[%emt 0:04:59]} 23. Kh1 {[%emt 0:00:27]} Rxc3 {[%emt 0:00:50]} 24. Rxc3 {[%emt 0:00:07]} exf4 {[%emt 0:00:09]} 25. gxf4 {[%emt 0:00:07]} Bxc3 {[%emt 0:00:36]} 26. Qxc3 {[%emt 0:00:06]} Rc8 {[%emt 0:00:57]} 27. Qf6 {[%emt 0:01:13]} Nxb4 {[%emt 0:02:17]} 28. Ng5 {[%emt 0:04:04]} Rf8 {[%emt 0:00:40]} 29. Qxe7 {[%emt 0:00:28]} a5 {[%emt 0:01:33]} 30. Bh3 {[%emt 0:05:41]} Qe3 {[%emt 0:03:21]} 31. Be6 {[%emt 0:01:47]} Qxf4 {[%emt 0:00:26]} 32. Bxf7+ {[%emt 0:00:20]} Rxf7 {[%emt 0:00:22]} 33. Qe8+ {[%emt 0:00:07]} 1-0

[Event "Icelandic Open 2019"]
[Site "Akureyri"]
[Date "2019.05.26"]
[Round "2.3"]
[White "Bergsson, Stefan"]
[Black "Stefansson, Hannes"]
[Result "0-1"]
[ECO "D60"]
[WhiteElo "2124"]
[BlackElo "2561"]
[Annotator "ChessBase"]
[PlyCount "64"]
[EventDate "2019.05.25"]
[EventType "swiss"]
[EventCountry "ISL"]
[SourceTitle "playchess.com"]
[Source "ChessBase"]
[SourceQuality "1"]
[TimeControl "40/5400+30:1800+30"]

1. d4 {[%emt 0:05:02]} Nf6 {[%emt 0:00:08]} 2. Nf3 {[%emt 0:01:25]} b6 {[%emt 0:00:37]} 3. c4 {[%emt 0:01:32]} Bb7 {[%emt 0:00:56]} 4. a3 {[%emt 0:02:46]} e6 {[%emt 0:05:05]} 5. Nc3 {[%emt 0:04:00]} d5 {[%emt 0:00:57]} 6. Bg5 {[%emt 0:00:21]} Be7 {[%emt 0:00:19]} 7. e3 {[%emt 0:01:29]} O-O {[%emt 0:02:05]} 8. Bd3 {[%emt 0:00:58]} dxc4 {[%emt 0:02:33]} 9. Bxc4 {[%emt 0:00:06]} h6 {[%emt 0:05:07]} 10. Bh4 {[%emt 0:02:56]} Nbd7 {[%emt 0:00:55]} 11. Rc1 {[%emt 0:01:07]} c5 {[%emt 0:01:44]} 12. O-O {[%emt 0:00:44]} Ne4 {[%emt 0:04:58]} 13. Bxe7 {[%emt 0:09:44]} Qxe7 {[%emt 0:03:47]} 14. Qe2 {[%emt 0:05:31]} Rad8 {[%emt 0:15:14]} 15. Rfd1 {[%emt 0:01:22]} Nxc3 {[%emt 0:03:51]} 16. Rxc3 {[%emt 0:00:22]} Bxf3 {[%emt 0:03:21]} 17. Qxf3 {[%emt 0:01:29]} cxd4 {[%emt 0:01:11]} 18. exd4 {[%emt 0:06:47]} Nf6 {[%emt 0:00:32]} 19. g3 {[%emt 0:05:57]} Nd5 {[%emt 0:06:34]} 20. Rcc1 {[%emt 0:01:01]} Rd7 {[%emt 0:01:08]} 21. Re1 {[%emt 0:13:28]} Rfd8 {[%emt 0:00:57]} 22. Re5 {[%emt 0:00:54]} Nf6 {[%emt 0:04:00]} 23. Rce1 {[%emt 0:00:14]} Rxd4 {[%emt 0:03:26]} 24. Qb3 {[%emt 0:05:20]} Qc7 {[%emt 0:02:00]} 25. Bf1 {[%emt 0:05:55]} Rd2 {[%emt 0:00:34]} 26. h3 {[%emt 0:00:38]} Qc2 {[%emt 0:00:50]} 27. Qf3 {[%emt 0:02:52]} Qxb2 {[%emt 0:01:04]} 28. g4 {[%emt 0:00:20]} R2d5 {[%emt 0:03:31]} 29. R5e2 {[%emt 0:00:14]} Qd4 {[%emt 0:00:33]} 30. Bg2 {[%emt 0:01:51]} Qa4 {[%emt 0:01:49]} 31. Kh2 {[%emt 0:00:24]} Rd3 {[%emt 0:00:25]} 32. Re3 {[%emt 0:00:03]} Qxa3 {[%emt 0:00:36]} 0-1

[Event "Icelandic Open 2019"]
[Site "Akureyri"]
[Date "2019.05.26"]
[Round "2.4"]
[White "Steingrimsson, Hedinn"]
[Black "Ptacnikova, Lenka"]
[Result "1-0"]
[ECO "D37"]
[WhiteElo "2549"]
[BlackElo "2145"]
[Annotator "ChessBase"]
[PlyCount "59"]
[EventDate "2019.05.25"]
[EventType "swiss"]
[EventCountry "ISL"]
[SourceTitle "playchess.com"]
[Source "ChessBase"]
[SourceQuality "1"]
[TimeControl "40/5400+30:1800+30"]

1. Nf3 {[%emt 0:00:00]} Nf6 {[%emt 0:00:00]} 2. c4 {[%emt 0:00:00]} e6 {[%emt 0:00:00]} 3. Nc3 {[%emt 0:00:00]} d5 {[%emt 0:01:48]} 4. d4 {[%emt 0:02:11]} Be7 {[%emt 0:01:11]} 5. Bf4 {[%emt 0:00:04]} O-O {[%emt 0:01:05]} 6. e3 {[%emt 0:00:09]} c5 {[%emt 0:04:31]} 7. dxc5 {[%emt 0:00:10]} Bxc5 {[%emt 0:01:13]} 8. a3 {[%emt 0:01:57]} Nc6 {[%emt 0:04:20]} 9. Qc2 {[%emt 0:01:59]} dxc4 {[%emt 0:05:17]} 10. Bxc4 {[%emt 0:01:01]} Bd7 {[%emt 0:02:21]} 11. Rd1 {[%emt 0:08:02]} Rc8 {[%emt 0:00:35]} 12. Ba2 {[%emt 0:02:16]} Be7 {[%emt 0:14:20]} 13. h3 {[%emt 0:23:54]} Qa5 {[%emt 0:04:59]} 14. e4 {[%emt 0:04:24]} Nb4 {[%emt 0:13:10]} 15. axb4 {[%emt 0:07:24]} Qxa2 {[%emt 0:01:54]} 16. O-O {[%emt 0:00:05]} Qa6 {[%emt 0:04:35]} 17. Bg5 {[%emt 0:06:13]} Bb5 {[%emt 0:09:12]} 18. e5 {[%emt 0:10:22]} Bxf1 {[%emt 0:01:42]} 19. exf6 {[%emt 0:00:02]} gxf6 {[%emt 0:00:26]} 20. Bh6 {[%emt 0:00:02]} Bb5 {[%emt 0:05:58]} 21. Qe4 {[%emt 0:05:09]} Kh8 {[%emt 0:00:45]} 22. Qh4 {[%emt 0:04:06]} Rg8 {[%emt 0:11:24]} 23. Ne5 {[%emt 0:00:55]} Rcf8 {[%emt 0:02:26]} 24. Ne4 {[%emt 0:11:54]} Qa4 {[%emt 0:01:37]} 25. Rd4 {[%emt 0:00:58]} Qa1+ {[%emt 0:05:15]} 26. Kh2 {[%emt 0:00:01]} Qe1 {[%emt 0:02:03]} 27. Bxf8 {[%emt 0:03:28]} Rxf8 {[%emt 0:00:03]} 28. Ng4 {[%emt 0:00:10]} Rg8 {[%emt 0:01:18]} 29. Ngxf6 {[%emt 0:00:22]} Rg7 {[%emt 0:00:12]} 30. Qf4 {[%emt 0:00:23]} 1-0

[Event "Icelandic Open 2019"]
[Site "Akureyri"]
[Date "2019.05.26"]
[Round "2.5"]
[White "Kristjansson, Olafur"]
[Black "Kjartansson, Gudmundur"]
[Result "1-0"]
[ECO "C03"]
[WhiteElo "2069"]
[BlackElo "2454"]
[Annotator "ChessBase"]
[PlyCount "106"]
[EventDate "2019.05.25"]
[EventType "swiss"]
[EventCountry "ISL"]
[SourceTitle "playchess.com"]
[Source "ChessBase"]
[SourceQuality "1"]
[TimeControl "40/5400+30:1800+30"]

1. e4 {[%emt 0:00:05]} e6 {[%emt 0:00:00]} 2. d4 {[%emt 0:00:12]} d5 {[%emt 0:00:01]} 3. Nd2 {[%emt 0:00:04]} Be7 {[%emt 0:01:12]} 4. Bd3 {[%emt 0:01:19]} c5 {[%emt 0:01:02]} 5. dxc5 {[%emt 0:04:25]} Nf6 {[%emt 0:01:03]} 6. exd5 {[%emt 0:01:47]} Qxd5 {[%emt 0:01:28]} 7. Ngf3 {[%emt 0:00:42]} Qxc5 {[%emt 0:00:40]} 8. O-O {[%emt 0:00:55]} O-O {[%emt 0:00:05]} 9. Qe2 {[%emt 0:03:00]} Nbd7 {[%emt 0:03:02]} 10. Re1 {[%emt 0:01:15]} b6 {[%emt 0:01:13]} 11. Ne4 {[%emt 0:00:26]} Qc7 {[%emt 0:00:22]} 12. Bd2 {[%emt 0:09:32]} Bb7 {[%emt 0:01:25]} 13. c4 {[%emt 0:08:06]} Bxe4 {[%emt 0:17:36]} 14. Bxe4 {[%emt 0:00:11]} Nxe4 {[%emt 0:00:07]} 15. Qxe4 {[%emt 0:00:20]} Nc5 {[%emt 0:01:30]} 16. Bf4 {[%emt 0:07:47]} Nxe4 {[%emt 0:14:40]} 17. Bxc7 {[%emt 0:00:09]} f5 {[%emt 0:01:08]} 18. Be5 {[%emt 0:08:42]} Rfd8 {[%emt 0:05:55]} 19. Red1 {[%emt 0:05:34]} Rac8 {[%emt 0:03:29]} 20. b3 {[%emt 0:00:13]} Bc5 {[%emt 0:16:25]} 21. Bd4 {[%emt 0:00:49]} Bxd4 {[%emt 0:00:51]} 22. Nxd4 {[%emt 0:19:38]} Nc3 {[%emt 0:03:08]} 23. Rdc1 {[%emt 0:00:08]} Rxd4 {[%emt 0:00:13]} 24. Rxc3 {[%emt 0:00:05]} Kf7 {[%emt 0:00:47]} 25. Rac1 {[%emt 0:00:28]} Kf6 {[%emt 0:01:27]} 26. Kf1 {[%emt 0:00:08]} e5 {[%emt 0:03:28]} 27. Ke2 {[%emt 0:01:15]} Rcd8 {[%emt 0:00:27]} 28. R3c2 {[%emt 0:00:13]} f4 {[%emt 0:03:50]} 29. Rb1 {[%emt 0:00:32]} e4 {[%emt 0:08:45]} 30. Rbb2 {[%emt 0:01:34]} Rd3 {[%emt 0:02:41]} 31. Rd2 {[%emt 0:02:07]} Rxd2+ {[%emt 0:02:43]} 32. Rxd2 {[%emt 0:00:08]} Rxd2+ {[%emt 0:00:05]} 33. Kxd2 {[%emt 0:00:08]} Ke5 {[%emt 0:01:08]} 34. Kc3 {[%emt 0:00:05]} g5 {[%emt 0:01:35]} 35. b4 {[%emt 0:00:49]} h5 {[%emt 0:01:41]} 36. c5 {[%emt 0:02:39]} bxc5 {[%emt 0:00:03]} 37. bxc5 {[%emt 0:00:05]} h4 {[%emt 0:00:32]} 38. c6 {[%emt 0:01:00]} Kd6 {[%emt 0:00:04]} 39. Kd4 {[%emt 0:00:22]} e3 {[%emt 0:01:30]} 40. fxe3 {[%emt 0:00:00]} fxe3 {[%emt 0:00:00]} 41. Kxe3 {[%emt 0:01:39]} Kxc6 {[%emt 0:01:51]} 42. Kf3 {[%emt 0:00:27]} h3 {[%emt 0:04:59]} 43. gxh3 {[%emt 0:00:12]} Kd5 {[%emt 0:01:02]} 44. Kg4 {[%emt 0:00:10]} Ke6 {[%emt 0:00:04]} 45. Kxg5 {[%emt 0:00:17]} Kf7 {[%emt 0:00:03]} 46. Kf5 {[%emt 0:00:41]} Kg7 {[%emt 0:00:03]} 47. Ke5 {[%emt 0:00:22]} Kg6 {[%emt 0:00:02]} 48. Kd5 {[%emt 0:00:09]} Kg5 {[%emt 0:00:05]} 49. Kc5 {[%emt 0:00:11]} Kh4 {[%emt 0:00:02]} 50. Kb5 {[%emt 0:00:19]} Kxh3 {[%emt 0:00:03]} 51. Ka6 {[%emt 0:00:11]} Kxh2 {[%emt 0:00:06]} 52. Kxa7 {[%emt 0:00:08]} Kg3 {[%emt 0:00:02]} 53. Kb7 {[%emt 0:00:22]} Kf3 {[%emt 0:00:09]} 1-0

[Event "Icelandic Open 2019"]
[Site "Akureyri"]
[Date "2019.05.26"]
[Round "2.6"]
[White "Gunnarsson, Jon Viktor"]
[Black "Pinto, Mark"]
[Result "1-0"]
[ECO "B76"]
[WhiteElo "2452"]
[BlackElo "2082"]
[Annotator "ChessBase"]
[PlyCount "109"]
[EventDate "2019.05.25"]
[EventType "swiss"]
[EventCountry "ISL"]
[SourceTitle "playchess.com"]
[Source "ChessBase"]
[SourceQuality "1"]
[TimeControl "40/5400+30:1800+30"]

1. e4 {[%emt 0:00:00]} c5 {[%emt 0:06:20]} 2. Nc3 {[%emt 0:00:01]} Nc6 {[%emt 0:00:05]} 3. Nf3 {[%emt 0:00:11]} g6 {[%emt 0:00:08]} 4. d4 {[%emt 0:01:54]} cxd4 {[%emt 0:00:05]} 5. Nxd4 {[%emt 0:00:07]} Bg7 {[%emt 0:00:03]} 6. Be3 {[%emt 0:01:05]} d6 {[%emt 0:00:44]} 7. Qd2 {[%emt 0:06:00]} Nf6 {[%emt 0:00:11]} 8. f3 {[%emt 0:00:50]} Bd7 {[%emt 0:02:48]} 9. g4 {[%emt 0:05:22]} Rc8 {[%emt 0:09:40]} 10. O-O-O {[%emt 0:08:45]} Nxd4 {[%emt 0:20:44]} 11. Bxd4 {[%emt 0:01:12]} O-O {[%emt 0:00:43]} 12. Kb1 {[%emt 0:04:18]} Be6 {[%emt 0:02:31]} 13. h4 {[%emt 0:11:54]} a6 {[%emt 0:11:38]} 14. h5 {[%emt 0:05:02]} b5 {[%emt 0:01:40]} 15. a3 {[%emt 0:09:20]} Qc7 {[%emt 0:07:11]} 16. Qh2 {[%emt 0:05:09]} Rfd8 {[%emt 0:01:24]} 17. hxg6 {[%emt 0:02:48]} hxg6 {[%emt 0:00:11]} 18. Bd3 {[%emt 0:08:46]} Qb7 {[%emt 0:01:33]} 19. Nd5 {[%emt 0:04:47]} Bxd5 {[%emt 0:03:23]} 20. exd5 {[%emt 0:01:53]} b4 {[%emt 0:03:14]} 21. axb4 {[%emt 0:03:52]} Qxb4 {[%emt 0:00:23]} 22. c3 {[%emt 0:01:35]} Qb7 {[%emt 0:00:56]} 23. c4 {[%emt 0:02:33]} Rb8 {[%emt 0:04:48]} 24. f4 {[%emt 0:06:00]} a5 {[%emt 0:00:14]} 25. g5 {[%emt 0:03:21]} Nh5 {[%emt 0:00:26]} 26. Bxg7 {[%emt 0:00:09]} Kxg7 {[%emt 0:00:12]} 27. f5 {[%emt 0:00:48]} Rh8 {[%emt 0:00:35]} 28. Qd2 {[%emt 0:02:10]} Qb4 {[%emt 0:00:37]} 29. fxg6 {[%emt 0:01:12]} Qxd2 {[%emt 0:00:14]} 30. Rxd2 {[%emt 0:00:03]} fxg6 {[%emt 0:00:27]} 31. Re1 {[%emt 0:01:08]} Rb7 {[%emt 0:01:13]} 32. Rf2 {[%emt 0:00:28]} Ng3 {[%emt 0:07:53]} 33. Ka2 {[%emt 0:01:12]} Rh5 {[%emt 0:01:50]} 34. Rg1 {[%emt 0:01:17]} Rh3 {[%emt 0:06:17]} 35. Rf3 {[%emt 0:01:10]} Rh2 {[%emt 0:00:06]} 36. Rfxg3 {[%emt 0:00:23]} Rhxb2+ {[%emt 0:00:45]} 37. Ka1 {[%emt 0:00:24]} R2b4 {[%emt 0:00:19]} 38. R3g2 {[%emt 0:00:35]} Rb3 {[%emt 0:00:59]} 39. Rb1 {[%emt 0:01:01]} Ra3+ {[%emt 0:03:11]} 40. Ra2 {[%emt 0:00:00]} Rxb1+ {[%emt 0:00:00]} 41. Bxb1 {[%emt 0:00:27]} Rg3 {[%emt 0:01:16]} 42. Rxa5 {[%emt 0:01:37]} Rxg5 {[%emt 0:00:05]} 43. Kb2 {[%emt 0:01:55]} Kf6 {[%emt 0:00:17]} 44. Ra8 {[%emt 0:03:11]} Rg3 {[%emt 0:03:05]} 45. Bc2 {[%emt 0:06:51]} g5 {[%emt 0:03:36]} 46. Bd1 {[%emt 0:03:07]} Ke5 {[%emt 0:04:28]} 47. Kc2 {[%emt 0:03:07]} Kd4 {[%emt 0:00:18]} 48. Be2 {[%emt 0:00:59]} Ke5 {[%emt 0:06:59]} 49. Re8 {[%emt 0:01:37]} Kf6 {[%emt 0:00:10]} 50. Kd2 {[%emt 0:00:10]} Ra3 {[%emt 0:03:50]} 51. Bd3 {[%emt 0:01:00]} Kf7 {[%emt 0:02:44]} 52. Rh8 {[%emt 0:00:39]} Kg7 {[%emt 0:02:10]} 53. Rh7+ {[%emt 0:00:31]} Kf6 {[%emt 0:00:03]} 54. Rh6+ {[%emt 0:00:05]} Ke5 {[%emt 0:00:23]} 55. Ke3 {[%emt 0:00:32]} 1-0

[Event "Icelandic Open 2019"]
[Site "Akureyri"]
[Date "2019.05.26"]
[Round "2.7"]
[White "Dietzsch, Herbert"]
[Black "Thorfinnsson, Bragi"]
[Result "0-1"]
[ECO "C24"]
[WhiteElo "2059"]
[BlackElo "2451"]
[Annotator "RC"]
[PlyCount "60"]
[EventDate "2019.05.25"]
[EventType "swiss"]
[EventCountry "ISL"]
[SourceTitle "playchess.com"]
[Source "ChessBase"]
[SourceQuality "1"]
[TimeControl "40/5400+30:1800+30"]

1. e4 {[%emt 0:00:00]} e5 {[%emt 0:07:49]} 2. Bc4 {[%emt 0:00:00]} Nf6 {[%emt 0:01:42]} 3. d3 {[%emt 0:00:05]} c6 {[%emt 0:01:43]} 4. Nf3 {[%emt 0:01:49]} d5 {[%emt 0:06:29]} 5. Bb3 {[%emt 0:02:54]} Bd6 {[%emt 0:03:03]} 6. Bg5 {[%emt 0:07:26]} dxe4 {[%emt 0:22:33]} 7. dxe4 {[%emt 0:06:30]} h6 {[%emt 0:00:17]} 8. Bxf6 {[%emt 0:01:33]} Qxf6 {[%emt 0:00:41]} 9. Nbd2 {[%emt 0:07:20]} Na6 {[%emt 0:03:54]} 10. Qe2 {[%emt 0:00:32]} Nc5 {[%emt 0:01:34]} 11. O-O-O {[%emt 0:01:23]} a5 {[%emt 0:03:59]} 12. a3 {[%emt 0:06:20]} Nxb3+ {[%emt 0:02:54]} 13. cxb3 {[%emt 0:00:12]} a4 {[%emt 0:07:02]} 14. Nc4 {[%emt 0:10:44]} Bc7 {[%emt 0:01:25]} 15. bxa4 {[%emt 0:11:03]} Rxa4 {[%emt 0:00:57]} 16. Qc2 {[%emt 0:02:21]} b5 {[%emt 0:02:42]} 17. Ne3 {[%emt 0:01:54]} O-O {[%emt 0:01:51]} 18. Rd3 {[%emt 0:08:11]} Ra6 {[%emt 0:02:41]} 19. Rf1 {[%emt 0:03:26]} Be6 {[%emt 0:01:34]} 20. Nd2 {[%emt 0:00:43]} Bb6 {[%emt 0:02:35]} 21. Kd1 {[%emt 0:04:17]} Bd4 {[%emt 0:03:06]} 22. Nb3 {[%emt 0:07:25]} Ra4 {[%emt 0:01:46]} 23. Nc5 {[%emt 0:02:07]} Bxc5 {[%emt 0:00:56]} 24. Qxc5 {[%emt 0:00:06]} Rxe4 {[%emt 0:00:19]} 25. Rd6 {[%emt 0:06:45]} Rxe3 {[%emt 0:03:29]} 26. Rxe6 {[%emt 0:00:08]} Rd3+ {[%emt 0:03:58]} 27. Ke2 {[%emt 0:01:21]} Qxe6 {[%emt 0:01:32]} 28. Kxd3 {[%emt 0:00:05]} Rd8+ {[%emt 0:02:36]} 29. Ke3 {[%emt 0:00:26]} Qg6 {[%emt 0:02:04]} 30. Qc3 {[%emt 0:03:58]} Qxg2 {[%emt 0:00:45]} 0-1

[Event "Icelandic Open 2019"]
[Site "Akureyri"]
[Date "2019.05.26"]
[Round "2.8"]
[White "Thorhallsson, Throstur"]
[Black "Petursson, Gudni"]
[Result "1/2-1/2"]
[ECO "B13"]
[WhiteElo "2435"]
[BlackElo "2045"]
[Annotator "NA"]
[PlyCount "51"]
[EventDate "2019.05.25"]
[EventType "swiss"]
[EventCountry "ISL"]
[SourceTitle "playchess.com"]
[Source "ChessBase"]
[SourceQuality "1"]
[TimeControl "40/5400+30:1800+30"]

{[%evp 8,48,25,27,33,6,28,29,28,15,32767,10,32767,16,34,13,43,28,12,23,4,22,27,17,25,16,32767,0,39,2,0,-2,0,-14,-21,-27,44,32767,45,27,31,0,28]} 1. e4 {[%emt 0:00:00]} c6 {[%emt 0:00:06]} 2. d4 {[%emt 0:00:19]} d5 {[%emt 0:00:05]} 3. exd5 {[%emt 0:00:45]} cxd5 {[%emt 0:00:07]} 4. Bd3 {[%emt 0:00:09]} Nc6 {[%emt 0:00:51]} 5. c3 {[%emt 0:00:50]} Nf6 {[%emt 0:00:51]} 6. h3 {[%emt 0:02:51]} e6 {[%emt 0:04:40]} 7. Nf3 {[%emt 0:01:06]} Bd6 {[%emt 0:01:01] B13: Caro-Kann: Exchange Variation and Panov-Botvinnik Attack} 8. Nbd2 {[%emt 0:03:08]} (8. O-O O-O 9. Re1 Qc7 10. Qe2 b6 11. Ne5 Bb7 12. Nd2 Rfe8 13. f4 g6 14. g4 a6 15. h4 b5 16. a3 {½-½ (45) Giri,A (2775)-Riazantsev,A (2654) Geneva 2017}) 8... Qc7 {[%emt 0:00:42]} 9. O-O {[%emt 0:02:51]} O-O {[%emt 0:00:09]} 10. Re1 {[%emt 0:01:16]} Bd7 {[%emt 0:04:23]} 11. Nf1 {[%emt 0:04:03]} Rae8 {[%emt 0:04:34]} 12. Bd2 $146 {[%emt 0:18:24]} ({Predecessor:} 12. Be3 a6 13. Rc1 e5 14. dxe5 Nxe5 15. Nxe5 Bxe5 {1-0 (26) Hoefliger,J (1588)-Saxer,B (1582) Luzern 1994}) 12... e5 {[%emt 0:01:13]} 13. dxe5 {[%emt 0:00:30]} Nxe5 {[%emt 0:00:05]} 14. Nxe5 {[%emt 0:00:15]} Bxe5 {[%emt 0:00:40]} 15. Be3 {[%emt 0:06:54]} b6 {[%emt 0:01:45]} 16. Rc1 {[%emt 0:04:50]} Bc6 {[%emt 0:03:52]} 17. Bb1 {[%emt 0:03:59]} Qd7 {[%emt 0:05:18]} 18. Qc2 {[%emt 0:08:05]} Re6 {[%emt 0:04:31]} 19. Rcd1 {[%emt 0:02:42]} g6 {[%emt 0:01:49]} 20. Nd2 {[%emt 0:12:28]} Rfe8 {[%emt 0:02:54]} 21. Nf3 {[%emt 0:01:38]} Qb7 {[%emt 0:03:58]} ({Black should play} 21... d4 $11 22. cxd4 (22. Nxd4 $2 Bxd4 23. Rxd4 Qb7 $17) (22. Nxe5 Rxe5 23. Rxd4 Qb7 $11) 22... Bxf3 23. dxe5 Bxd1 24. Rxd1 Nd5) 22. Nxe5 {[%emt 0:05:24]} Rxe5 {[%emt 0:00:35]} 23. Rd4 $11 {[%emt 0:00:55]} Ne4 {[%emt 0:01:05]} 24. Qd1 {[%emt 0:01:27]} Nd6 {[%emt 0:01:18]} 25. Qg4 {[%emt 0:04:21]} Nc4 {[%emt 0:00:40]} 26. Qg3 {[%emt 0:05:10]} 1/2-1/2

[Event "Icelandic Open 2019"]
[Site "Akureyri"]
[Date "2019.05.26"]
[Round "2.9"]
[White "Pupols, Viktors"]
[Black "Gretarsson, Helgi Ass"]
[Result "1/2-1/2"]
[ECO "A48"]
[WhiteElo "2023"]
[BlackElo "2433"]
[Annotator "NA"]
[PlyCount "100"]
[EventDate "2019.05.25"]
[EventType "swiss"]
[EventCountry "ISL"]
[SourceTitle "playchess.com"]
[Source "ChessBase"]
[SourceQuality "1"]
[TimeControl "40/5400+30:1800+30"]

1. d4 {[%emt 0:02:05]} g6 {[%emt 0:00:00]} 2. Nf3 {[%emt 0:00:22]} Bg7 {[%emt 0:00:00]} 3. c3 {[%emt 0:00:46]} Nf6 {[%emt 0:02:52]} 4. g3 {[%emt 0:00:28]} b6 {[%emt 0:02:16]} 5. Bg2 {[%emt 0:00:05]} Bb7 {[%emt 0:00:03]} 6. O-O {[%emt 0:00:09]} O-O {[%emt 0:00:42]} 7. Nbd2 {[%emt 0:01:57]} c5 {[%emt 0:04:39]} 8. e3 {[%emt 0:06:24]} Qc7 {[%emt 0:12:11]} 9. b3 {[%emt 0:04:06]} d6 {[%emt 0:12:34]} 10. Re1 {[%emt 0:17:39]} Ne4 {[%emt 0:03:17]} 11. Nxe4 {[%emt 0:07:24]} Bxe4 {[%emt 0:00:05]} 12. Nd2 {[%emt 0:00:35]} Bxg2 {[%emt 0:01:15]} 13. Kxg2 {[%emt 0:00:08]} Nc6 {[%emt 0:07:37]} 14. Bb2 {[%emt 0:12:37]} Rfc8 {[%emt 0:17:24]} 15. Nf3 {[%emt 0:06:19]} Qb7 {[%emt 0:01:37]} 16. Qe2 $15 {[%emt 0:06:54]} cxd4 {[%emt 0:06:32]} 17. exd4 {[%emt 0:04:30]} e6 {[%emt 0:03:48]} 18. Kg1 {[%emt 0:00:57]} Ne7 {[%emt 0:00:28]} 19. c4 {[%emt 0:05:39]} Rc7 {[%emt 0:04:50]} 20. Rad1 {[%emt 0:02:15]} d5 {[%emt 0:06:36]} 21. Ne5 {[%emt 0:00:56]} Nf5 {[%emt 0:00:42]} 22. Qf3 {[%emt 0:02:33]} dxc4 {[%emt 0:05:21]} 23. Qxb7 {[%emt 0:00:24]} Rxb7 {[%emt 0:00:01]} 24. bxc4 {[%emt 0:01:52]} b5 {[%emt 0:01:37]} 25. c5 {[%emt 0:00:49]} Bxe5 {[%emt 0:00:07]} 26. Rxe5 {[%emt 0:01:45]} Ne7 {[%emt 0:00:03]} 27. Re2 {[%emt 0:01:58]} a5 {[%emt 0:00:32]} 28. Bc1 {[%emt 0:01:03]} Nd5 {[%emt 0:01:05]} 29. Rc2 {[%emt 0:00:07]} Ra6 {[%emt 0:01:21]} 30. Bf4 {[%emt 0:00:29]} Rc6 {[%emt 0:00:43]} 31. a3 {[%emt 0:02:13]} Kf8 {[%emt 0:00:30]} 32. Bd2 {[%emt 0:01:09]} Ra6 {[%emt 0:04:26]} 33. Rb1 {[%emt 0:02:19]} Ke8 {[%emt 0:00:23]} 34. c6 {[%emt 0:00:09]} Rc7 {[%emt 0:00:46]} 35. Rxb5 {[%emt 0:00:53]} Rcxc6 {[%emt 0:00:31]} 36. Rxc6 {[%emt 0:00:07]} Rxc6 {[%emt 0:00:01]} 37. Rxa5 {[%emt 0:01:15]} Rc2 {[%emt 0:00:32]} 38. Bb4 {[%emt 0:01:52]} Nxb4 {[%emt 0:00:33]} 39. axb4 {[%emt 0:00:05]} Rc4 {[%emt 0:00:43]} 40. d5 {[%emt 0:00:00]} exd5 {[%emt 0:00:00]} 41. Rxd5 {[%emt 0:00:56]} Rxb4 {[%emt 0:00:16]} 42. Ra5 {[%emt 0:01:14]} Ke7 {[%emt 0:00:07]} 43. Ra6 {[%emt 0:00:09]} h5 {[%emt 0:00:38]} 44. h4 {[%emt 0:00:10]} Re4 {[%emt 0:00:50]} 45. Kg2 {[%emt 0:00:32]} Re5 {[%emt 0:01:41]} 46. Rb6 {[%emt 0:00:16]} Rf5 {[%emt 0:00:15]} 47. Ra6 {[%emt 0:00:15]} Rf6 {[%emt 0:01:02]} 48. Ra7+ {[%emt 0:00:18]} Ke6 {[%emt 0:00:05]} 49. Ra6+ {[%emt 0:00:07]} Ke7 {[%emt 0:00:09]} 50. Ra7+ {[%emt 0:00:03]} Ke6 {[%emt 0:00:04]} 1/2-1/2